{"text_format":"1","workbook":"xlsx","n_sheets":1,"sheets":["прилож. № 7"],"not_rendered":{"charts":0,"images":0,"macros":0,"external_links":0,"defined_names":0,"comments":0,"pivot_tables":0},"unopened":[],"bounds":{"document_bytes":16777216,"sheet_cells":100000,"rows_first":2000,"rows_last":500,"rows_between":2000,"halvings":0,"cell_chars":16384,"cell_head_chars":4096},"cells_cut":0,"cells_raw":0,"read":"whole","date_system":"1900"}

{"sheet":"прилож. № 7","index":0,"n_rows":221,"n_cols":11,"rows_kept":221,"cut":false,"hidden":false,"merged":[[0,0,0,5],[1,0,1,5],[2,1,2,5],[3,0,3,5]]}
["                                                                                    Приложение № 2"]
["к решению  Думы Ушаковского муниципального образования от 27.12.2018 г. №152                                                                                                                            \"О внесении изменений в решение Думы Ушаковского муниципального образования № 66 от 08.12.2017г. \"Об утверждении бюджета на 2018 г. и на плановый период 2019-2020 годов\"                                                                                                                                                                                                                                      "]
[]
["РАСПРЕДЕЛЕНИЕ БЮДЖЕТНЫХ АССИГНОВАНИЙ  ПО РАЗДЕЛАМ, ПОДРАЗДЕЛАМ, ЦЕЛЕВЫМ СТАТЬЯМ (МУНИЦИПАЛЬНЫМ ПРОГРАММАМ И НЕПРОГРАММНЫМ НАПРАВЛЕНИЯМ ДЕЯТЕЛЬНОСТИ) И ВИДАМ РАСХОДОВ КЛАССИФИКАЦИИ РАСХОДОВ БЮДЖЕТОВ НА 2018 ГОД"]
[]
["Наименование","РЗ","Пр","КЦСР","КВР","Сумма         (тыс. руб)"]
["В С Е Г О",null,null,null,null,{"$f":"F8+F83+F93+F102+F131+F171+F190+F207","v":91957.299999999988}]
["ОБЩЕГОСУДАРСТВЕННЫЕ ВОПРОСЫ","01","00","00.0.00.00000","000",{"$f":"F9+F30+F69+F19+F76","v":29014.400000000001}]
["Функционирование высшего должностного лица субъекта Российской Федерации и муниципального образования","01","02","00.0.00.00000","000",{"$f":"F10","v":1770.8}]
["Непрограммные расходы органов местного самоуправления","01","02","91.0.00.00000","000",{"$f":"F11","v":1770.8}]
["Непрограммные расходы органов местного самоуправления за счет средств местного бюджета","01","02","91.1.00.00000","000",{"$f":"F12","v":1770.8}]
["Осуществление органами местного самоуправления полномочий местного значения поселения","01","02","91.1.00.60000","000",{"$f":"F13","v":1770.8}]
["Обеспечение деятельности в сфере установленных функций","01","02","91.1.00.60001","000",{"$f":"F16+F17+F18","v":1770.8}]
["Расходы на выплаты персоналу в целях обеспечения выполнения функций государственными (муниципальными) органами, казенными учреждениями, органами управления государственными внебюджетными фондами","01","02","91.1.00.60001","100",{"$f":"F15","v":1770.8}]
["Расходы на выплаты персоналу государственных (муниципальных) органов","01","02","91.1.00.60001","120",{"$f":"F16+F17+F18","v":1770.8}]
["Фонд оплаты труда государственных (муниципальных) органов ","01","02","91.1.00.60001","121",{"$f":"1413.1","v":1413.1}]
["Взносы по обязательному социальному страхованию на выплаты денежного содержания и иные выплаты работникам государственных (муниципальных) органов","01","02","91.1.00.60001","129",{"$f":"343.2+14.5","v":357.7}]
["Иные выплаты персоналу государственных (муниципальных) органов, за исключением фонда оплаты труда","01","02","91.1.00.60001","122",{"$f":"100-30-70","v":0}]
["Функционирование законодательных (представительных) органов государственной власти и представительных органов муниципальных образований","01","03","91.1.00.00000","000",{"$f":"F20","v":919.9}]
["Непрограммные расходы органов местного самоуправления за счет средств местного бюджета","01","03","91.1.00.00000","000",{"$f":"F21","v":919.9}]
["Осуществление органами местного самоуправления полномочий местного значения поселения","01","03","91.1.00.60000","000",{"$f":"F22","v":919.9}]
["Обеспечение деятельности в сфере установленных функций","01","03","91.1.00.60001","000",{"$f":"F23+F27","v":919.9}]
["Расходы на выплаты персоналу в целях обеспечения выполнения функций государственными (муниципальными) органами, казенными учреждениями, органами управления государственными внебюджетными фондами","01","03","91.1.00.60001","100",{"$f":"F24","v":918.4}]
["Расходы на выплаты персоналу государственных (муниципальных) органов","01","03","91.1.00.60001","120",{"$f":"F25+F26","v":918.4}]
["Фонд оплаты труда государственных (муниципальных) органов ","01","03","91.1.00.60001","121",{"$f":"587.9+117","v":704.9}]
["Взносы по обязательному социальному страхованию на выплаты денежного содержания и иные выплаты работникам государственных (муниципальных) органов","01","03","91.1.00.60001","129",{"$f":"177.5+36","v":213.5}]
["Иные бюджетные ассигнования","01","03","91.1.00.60001","800",{"$f":"F29","v":1.5}]
["Уплата налогов,сборов и иных платежей","01","03","91.1.00.60001","850",{"$f":"F29","v":1.5}]
["Уплата иных платежей","01","03","91.1.00.60001","853",{"$f":"30-28.5","v":1.5}]
["Непрограммные расходы органов местного самоуправления","01","04","91.0.00.00000","000",{"$f":"F31+F48","v":22388.7}]
["Непрограммные расходы органов местного самоуправления за счет средств местного бюджета","01","04","91.1.00.00000","000",{"$f":"F32","v":22388}]
["Осуществление органами местного самоуправления полномочий местного значения поселения","01","04","91.1.00.60000","000",{"$f":"F33","v":22388}]
["Обеспечение деятельности в сфере установленных функций","01","04","91.1.00.60001","000",{"$f":"F34+F37+F39+F42","v":22388}]
["Расходы на выплаты персоналу в целях обеспечения выполнения функций государственными (муниципальными) органами, казенными учреждениями, органами управления государственными внебюджетными фондами","01","04","91.1.00.60001","100",{"$f":"F35","v":13909}]
["Расходы на выплаты персоналу государственных (муниципальных) органов","01","04","91.1.00.60001","120",{"$f":"F36+F38","v":13909}]
["Фонд оплаты труда государственных (муниципальных) органов ","01","04","91.1.00.60001","121",{"$f":"10034+197.6","v":10231.6}]
["Иные выплаты персоналу государственных (муниципальных) органов, за исключением фонда оплаты труда","01","04","91.1.00.60002","122",{"$f":"60-26.8","v":33.200000000000003}]
["Взносы по обязательному социальному страхованию на выплаты денежного содержания и иные выплаты работникам государственных (муниципальных) органов","01","04","91.1.00.60001","129",{"$f":"3030.2+26.8+580+40.4","v":3677.4}]
["Закупка товаров, работ и услуг для обеспечения государственных (муниципальных) нужд","01","04","91.1.00.60001","200",{"$f":"F40","v":8144.5}]
["Иные закупки товаров, работ и услуг для обеспечения государственных (муниципальных) нужд","01","04","91.1.00.60001","240",{"$f":"F41","v":8144.5}]
["Прочая закупка товаров, работ и услуг для обеспечения государственных (муниципальных) нужд","01","04","91.1.00.60001","244",{"$f":"3716.7-105-100-60-20+1000+300+480.3+70+244.1+648.3-5.7-14.5+2199.8+28.4-237.9","v":8144.5},null,null,-14.5,2199.8000000000002,-237.9]
["Иные бюджетные ассигнования","01","04","91.1.00.60001","800",{"$f":"F43+F46","v":301.3}]
["Уплата налогов,сборов и иных платежей","01","04","91.1.00.60001","850",{"$f":"F44+F45","v":71}]
["Уплата прочих налогов, сборов","01","04","91.1.00.60001","852",16]
["Уплата иных платежей","01","04","91.1.00.60001","853",{"$f":"35+20","v":55}]
["Исполнение судебных актов","01","04","91.1.00.60001","830",{"$f":"F47","v":230.3}]
["Исполнение судебных актов Российской Федерации и мировых соглашений по возмещению вреда, причиненного в результате незаконных действий (бездействия) органов государственной власти (государственных органов), органов местного самоуправления либо должностных лиц этих органов, а также в результате деятельности казенных учреждений","01","04","91.1.00.60001","831",{"$f":"125.3+105","v":230.3}]
["Непрограммные расходы органов местного самоуправления за счет средств областного бюджета","01","04","91.2.00.00000","000",{"$f":"F57+F49","v":0.7}]
["Субсидии на выравнивание обеспеченности муниципальных образований Иркутской области по реализации ими их отдельных расходных обязательств","01","04","91.2.00.72600","000",{"$f":"F50+F54","v":0}]
["Расходы на выплаты персоналу в целях обеспечения выполнения функций государственными (муниципальными) органами, казенными учреждениями, органами управления государственными внебюджетными фондами","01","04","91.2.00.72600","100",{"$f":"F51","v":0}]
["Расходы на выплаты персоналу государственных (муниципальных) органов","01","04","91.2.00.72600","120",{"$f":"F52+F53","v":0}]
["Фонд оплаты труда государственных (муниципальных) органов ","01","04","91.2.00.72600","121",0]
["Взносы по обязательному социальному страхованию на выплаты денежного содержания и иные выплаты работникам государственных (муниципальных) органов","01","04","91.2.00.72600","129",0]
["Иные закупки товаров, работ и услуг для обеспечения государственных (муниципальных) нужд","01","04","91.2.00.72600","200",{"$f":"F55","v":0}]
["Прочая закупка товаров, работ и услуг для обеспечения государственных (муниципальных) нужд","01","04","91.2.00.72600","240",{"$f":"F56","v":0}]
["Прочая закупка товаров, работ и услуг для обеспечения государственных (муниципальных) нужд","01","04","91.2.00.72600","244",0]
["Субвенции на осуществление областного государственного полномочия по определению перечня должностных лиц органов местного самоуправления, уполномоченных составлять протоколы об административных правонарушениях, предусмотренных отдельными законами Иркутской области об административной ответственности","01","04","91.2.00.73150","000",{"$f":"F60","v":0.7}]
["Закупка товаров, работ и услуг для обеспечения государственных (муниципальных) нужд","01","04","91.2.00.73150","200",{"$f":"F59","v":0.7}]
["Иные закупки товаров, работ и услуг для обеспечения государственных (муниципальных) нужд","01","04","91.2.00.73150","240",{"$f":"F60","v":0.7}]
["Прочая закупка товаров, работ и услуг для обеспечения государственных (муниципальных) нужд","01","04","91.2.00.73150","244",0.7]
["Обеспечение проведения выборов и референдумов","01","07","00.0.00.00000","000",{"$f":"F62","v":0}]
["Непрограммные расходы органов местного самоуправления","01","07","91.0.00.00000","000",0]
["Непрограммные расходы органов местного самоуправления за счет средств местного бюджета","01","07","91.1.00.00000","000",0]
["Осуществление органами местного самоуправления полномочий местного значения поселения","01","07","91.1.00.60000","000",0]
["Проведения выборов и референдумов","01","07","91.1.00.60003","000",0]
["Закупка товаров, работ и услуг для обеспечения государственных (муниципальных) нужд","01","07","91.1.00.60003","200",0]
["Иные закупки товаров, работ и услуг для обеспечения государственных (муниципальных) нужд","01","07","91.1.00.60003","240",0]
["Прочая закупка товаров, работ и услуг для обеспечения государственных (муниципальных) нужд","01","07","91.1.00.60003","244",0]
["Резервные фонды","01","11","00.0.00.00000","000",{"$f":"F70","v":300}]
["Непрограммные расходы органов местного самоуправления","01","11","91.1.00.00000","000",300]
["Непрограммные расходы органов местного самоуправления за счет средств местного бюджета","01","11","91.1.00.00000","000",{"$f":"F72","v":300}]
["Осуществление органами местного самоуправления полномочий местного значения поселения","01","11","91.1.00.60000","000",300]
["Резервный фонд администрации муниципального образования","01","11","91.1.00.60004","000",300]
["Иные бюджетные ассигнования","01","11","91.1.00.60004","800",300]
["Резервные средства","01","11","91.1.00.60004","870",300]
["Другие общегосударственные вопросы","01","13","91.1.00.00000","000",{"$f":"F77","v":3635}]
["Расходы на выплату персоналу в целях обеспечения выполнения функций государственными (муниципальными) органами, казенными учреждениями, органами управления государственными внебюджетными фондами","01","13","91.1.00.60002","100",{"$f":"F78+F79+F80","v":3635}]
["Расходы на выплаты персоналу в целях обеспечения выполнения функций государственными (муниципальными) органами, казенными учреждениями, органами управления государственными внебюджетными фондами","01","13","91.1.00.60002","111",{"$f":"2088.1+700","v":2788.1}]
["Взносы по обязательному социальному страхованию на выплаты по оплате труда работников и иные выплаты работникам учреждений","01","13","91.1.00.60002","119",{"$f":"565.9+280","v":845.9}]
["Иные бюджетные ассигнования","01","13","91.1.00.60002","800",{"$f":"F81","v":1}]
["Уплата налогов,сборов и иных платежей","01","13","91.1.00.60002","850",{"$f":"F82","v":1}]
["Уплата иных платежей","01","13","91.1.00.60002","853",1]
["НАЦИОНАЛЬНАЯ ОБОРОНА","02","00","00.0.00.00000","000",{"$f":"F84","v":441.3}]
["Мобилизационная и вневойсковая подготовка","02","03","00.0.00.00000","000",{"$f":"F85","v":441.3}]
["Непрограммные расходы органов местного самоуправления","02","03","91.0.00.00000","000",{"$f":"F86","v":441.3}]
["Субвенции на осуществление первичного воинского учета на территориях, где отсутствуют военные комиссариаты","02","03","91.3.00.51180","000",{"$f":"F87","v":441.3}]
["Расходы на выплаты персоналу государственных (муниципальных) органов","02","03","91.3.00.51181","120",{"$f":"F88+F89+F90","v":441.3}]
["Фонд оплаты труда государственных (муниципальных) органов и взносы по обязательному социальному страхованию","02","03","91.3.00.51180","121",{"$f":"247.5+5.4+47.8","v":300.7}]
["Взносы по обязательному социальному страхованию на выплаты денежного содержания и иные выплаты работникам государственных (муниципальных) органов","02","03","91.3.00.51180","129",{"$f":"74.7+16.5+16.8","v":108}]
["Закупка товаров, работ и услуг для обеспечения государственных (муниципальных) нужд","02","03","91.3.00.51180","200",{"$f":"F91","v":32.600000000000009}]
["Иные закупки товаров, работ и услуг для обеспечения государственных (муниципальных) нужд","02","03","91.3.00.51180","240",{"$f":"F92","v":32.600000000000009}]
["Прочая закупка товаров, работ и услуг для обеспечения государственных (муниципальных) нужд","02","03","91.3.00.51180","244",{"$f":"5+92.2-64.6","v":32.600000000000009}]
["НАЦИОНАЛЬНАЯ БЕЗОПАСНОСТЬ И ПРАВООХРАНИТЕЛЬНАЯ ДЕЯТЕЛЬНОСТЬ","03","00","00.0.00.00000","000",{"$f":"F94","v":350}]
["Обеспечение пожарной безопасности","03","10","00.0.00.00000","000",350]
["Непрограммные расходы органов местного самоуправления","03","10","91.0.00.00000","000",350]
["Непрограммные расходы органов местного самоуправления за счет средств местного бюджета","03","10","91.1.00.00000","000",350]
["Осуществление органами местного самоуправления полномочий местного значения поселения","03","10","91.1.00.60000","000",350]
["Реализация других функций, связанных с обеспечением национальной безопасности и правоохранительной деятельности","03","10","91.1.00.60007","000",350]
["Закупка товаров, работ и услуг для обеспечения государственных (муниципальных) нужд","03","10","91.1.00.60007","200",350]
["Иные закупки товаров, работ и услуг для обеспечения государственных (муниципальных) нужд","03","10","91.1.00.60007","240",{"$f":"F101","v":350}]
["Прочая закупка товаров, работ и услуг для обеспечения государственных (муниципальных) нужд","03","10","91.1.00.60007","244",350]
["НАЦИОНАЛЬНАЯ ЭКОНОМИКА","04","00","00.0.00.00000","000",{"$f":"F103+F113","v":12873.999999999998}]
["Дорожное хозяйство (дорожные фонды)","04","09","00.0.00.00000","000",{"$f":"F104","v":10361.599999999999}]
["Непрограммные расходы органов местного самоуправления","04","09","91.0.00.00000","000",10361.599999999999]
["Непрограммные расходы органов местного самоуправления за счет средств местного бюджета","04","09","91.1.00.00000","000",10361.599999999999]
["Осуществление органами местного самоуправления полномочий местного значения поселения","04","09","91.1.00.60000","000",{"$f":"F108","v":10361.599999999999}]
["Приобретение материальных и нематериальных активов в сфере установленных функций","04","09","91.1.00.60010","000",{"$f":"F109","v":10361.599999999999}]
["Иные мероприятия и сфере установленных функций","04","09","91.1.00.60011","000",10361.599999999999]
["Закупка товаров, работ и услуг для обеспечения государственных (муниципальных) нужд","04","09","91.1.00.60011","200",10361.599999999999]
["Иные закупки товаров, работ и услуг для обеспечения государственных (муниципальных) нужд","04","09","91.1.00.60011","240",{"$f":"F112+F111","v":10361.599999999999}]
["Закупка товаров, работ, услуг в целях капитального ремонта государственного (муниципального) имущества","04","09","91.1.00.60011","243",{"$f":"1960+1013.7-198.2-28.2","v":2747.3}]
["Прочая закупка товаров, работ и услуг для обеспечения государственных (муниципальных) нужд","04","09","91.1.00.60011","244",{"$f":"5633.8+2966-1013.7+28.2","v":7614.2999999999993}]
["Другие вопросы в области национальной экономике","04","12","00.0.00.00000","000",{"$f":"F114","v":2512.3999999999992}]
["Непрограммные расходы органов местного самоуправления","04","12","91.1.00.00000","000",2512.3999999999992]
["Непрограммные расходы органов местного самоуправления за счет средств местного бюджета","04","12","91.1.00.00000","000",{"$f":"F116+F123+F127","v":2512.3999999999992}]
["Осуществление органами местного самоуправления полномочий местного значения поселения","04","12","91.1.00.60000","000",{"$f":"F118","v":1173.3999999999992}]
["Приобретение материальных и нематериальных активов в сфере установленных функций","04","12","91.1.00.60010","000",{"$f":"F118","v":1173.3999999999992}]
["Иные мероприятия и сфере установленных функций","04","12","91.1.00.60011","000",1173.3999999999992]
["Закупка товаров, работ и услуг для обеспечения государственных (муниципальных) нужд","04","12","91.1.00.60011","200",1173.3999999999992]
["Иные закупки товаров, работ и услуг для обеспечения государственных (муниципальных) нужд","04","12","91.1.00.60011","240",{"$f":"F122","v":1173.3999999999992}]
["Закупка товаров, работ, услуг в целях капитального ремонта государственного (муниципального) имущества","04","12","91.1.00.60011","243",{"$f":"873.7-873.7","v":0}]
["Прочая закупка товаров, работ и услуг для обеспечения государственных (муниципальных) нужд","04","12","91.1.00.60011","244",{"$f":"8829.3-2966+999.5-4000-350.4-970-829.5+459.5+1","v":1173.3999999999992}]
["Актуализация документов территориального планирования","04","12","91.4.00.S2970","000",{"$f":"F124","v":969}]
["Закупка товаров, работ и услуг для обеспечения государственных (муниципальных) нужд","04","12","91.4.00.S2970","200",{"$f":"F125","v":969}]
["Иные закупки товаров, работ и услуг для обеспечения государственных (муниципальных) нужд","04","12","91.4.00.S2970","240",{"$f":"F126","v":969}]
["Прочая закупка товаров, работ и услуг для обеспечения государственных (муниципальных) нужд","04","12","91.4.00.S2970","244",{"$f":"970-1","v":969}]
["Проведение работ в отношении постановки на кадастровый учет границ населенных пунктов","04","12","91.4.00.S2990","000",{"$f":"F128","v":370}]
["Закупка товаров, работ и услуг для обеспечения государственных (муниципальных) нужд","04","12","91.4.00.S2990","200",{"$f":"F129","v":370}]
["Иные закупки товаров, работ и услуг для обеспечения государственных (муниципальных) нужд","04","12","91.4.00.S2990","240",{"$f":"F130","v":370}]
["Прочая закупка товаров, работ и услуг для обеспечения государственных (муниципальных) нужд","04","12","91.4.00.S2990","244",{"$f":"829.5-459.5","v":370}]
["ЖИЛИЩНО-КОММУНАЛЬНОЕ ХОЗЯЙСТВО","05","00","00.0.00.00000","000",{"$f":"F132+F143+F151","v":21222.6}]
["Жилищное хозяйство","05","01","00.0.00.00000","000",{"$f":"F133","v":1940}]
["Непрограммные расходы органов местного самоуправления","05","01","91.0.00.00000","000",{"$f":"F134+F140","v":1940}]
["Непрограммные расходы органов местного самоуправления за счет средств местного бюджета","05","01","91.1.00.00000","000",1928]
["Осуществление органами местного самоуправления полномочий местного значения поселения","05","01","91.1.00.60000","000",1928]
["Строительство, реконструкция, капитальный ремонт в сфере установленных функций","05","01","91.1.00.60008","000",1928]
["Закупка товаров, работ и услуг для обеспечения государственных (муниципальных) нужд","05","01","91.1.00.60008","200",1928]
["Иные закупки товаров, работ и услуг для обеспечения государственных (муниципальных) нужд","05","01","91.1.00.60008","240",1928]
["Закупка товаров, работ, услуг в целях капитального ремонта государственного (муниципального) имущества","05","01","91.1.00.60008","243",{"$f":"40+6000-600-500-1500-1500-12","v":1928},null,null,null,-12]
["Текущий ремонт в сфере установленных функций","05","01","91.1.00.60009","200",{"$f":"F141","v":12},null,null,12]
["Закупка товаров, работ и услуг для обеспечения государственных (муниципальных) нужд","05","01","91.1.00.60009","240",{"$f":"F142","v":12}]
["Иные закупки товаров, работ и услуг для обеспечения государственных (муниципальных) нужд","05","01","91.1.00.60009","244",12]
["Коммунальное хозяйство","05","02","00.0.00.00000","000",{"$f":"F144","v":3197.599999999999}]
["Непрограммные расходы органов местного самоуправления","05","02","91.0.00.00000","000",{"$f":"F146","v":3197.599999999999}]
["Непрограммные расходы органов местного самоуправления за счет средств местного бюджета","05","02","91.1.00.00000","000",{"$f":"F146","v":3197.599999999999}]
["Осуществление органами местного самоуправления полномочий местного значения поселения","05","02","91.1.00.60000","000",{"$f":"F147","v":3197.599999999999}]
["Иные мероприятия и сфере установленных функций","05","02","91.1.00.60011","000",{"$f":"F148","v":3197.599999999999}]
["Закупка товаров, работ и услуг для обеспечения государственных (муниципальных) нужд","05","02","91.1.00.60011","200",{"$f":"F149","v":3197.599999999999}]
["Иные закупки товаров, работ и услуг для обеспечения государственных (муниципальных) нужд","05","02","91.1.00.60011","240",{"$f":"F150","v":3197.599999999999}]
["Прочая закупка товаров, работ и услуг для обеспечения государственных (муниципальных) нужд","05","02","91.1.00.60011","244",{"$f":"7400+1000+0.3+0.4-6800+6800-4000-2500+4000+1097-3800.1","v":3197.599999999999},null,null,-3800]
["Благоустройство","05","03","00.0.00.00000","000",{"$f":"F152","v":16085},null,null,null,14084645]
["Непрограммные расходы органов местного самоуправления","05","03","91.0.00.00000","000",{"$f":"F153","v":16085}]
["Непрограммные расходы органов местного самоуправления за счет средств местного бюджета","05","03","91.1.00.00000","000",{"$f":"F154","v":16085}]
["Осуществление органами местного самоуправления полномочий местного значения поселения","05","03","91.1.00.60000","000",{"$f":"F155","v":16085}]
["Мероприятия в области жилищно-коммунального хозяйства","05","03","91.1.00.60100","000",{"$f":"F156+F160","v":16085}]
["Уличное освещение","05","03","91.1.00.60101","000",{"$f":"F157","v":3862.6000000000004}]
["Закупка товаров, работ и услуг для обеспечения государственных (муниципальных) нужд","05","03","91.1.00.60101","200",{"$f":"F158","v":3862.6000000000004}]
["Иные закупки товаров, работ и услуг для обеспечения государственных (муниципальных) нужд","05","03","91.1.00.60101","240",{"$f":"F159","v":3862.6000000000004}]
["Прочая закупка товаров, работ и услуг для обеспечения государственных (муниципальных) нужд","05","03","91.1.00.60101","244",{"$f":"1362.3+600+400+1000+0.3+500","v":3862.6000000000004}]
["Прочие  мероприятия по благоустройству городских округов и поселений ","05","03","91.1.00.60105","000",{"$f":"F161+F164","v":12222.4}]
["Закупка товаров, работ и услуг для обеспечения государственных (муниципальных) нужд","05","03","91.1.00.60105","200",{"$f":"F162","v":9722.4}]
["Иные закупки товаров, работ и услуг для обеспечения государственных (муниципальных) нужд","05","03","91.1.00.60105","240",{"$f":"F163","v":9722.4}]
["Прочая закупка товаров, работ и услуг для обеспечения государственных (муниципальных) нужд","05","03","91.1.00.60105","244",{"$f":"7472.4-1000+4000-1000-153-1097+1500","v":9722.4}]
["Непрограммные расходы органов местного самоуправления за счет средств областного бюджета","05","03","91.4.00.S2370","000",{"$f":"F165","v":2500}]
["Субсидии на реализацию мероприятий перечня проектов народных инициатив за счет областного бюджета","05","03","91.4.00.S2370","000",{"$f":"F166","v":2500}]
["Закупка товаров, работ и услуг для обеспечения государственных (муниципальных) нужд","05","03","91.4.00.S2370","200",{"$f":"F167","v":2500}]
["Иные закупки товаров, работ и услуг для обеспечения государственных (муниципальных) нужд","05","03","91.4.00.S2370","240",{"$f":"F168","v":2500}]
["Прочая закупка товаров, работ и услуг для обеспечения государственных (муниципальных) нужд","05","03","91.4.00.S2370","244",{"$f":"2250+250-250+250","v":2500}]
["Субсидии юридическим лицам (кроме некоммерческих организаций), индивидуальным предпринимателям, физическим лицам – производителям товаров, работ, услуг","05","03","91.1.00.60100","810",{"$f":"F170","v":0}]
["Субсидии на возмещение недополученных доходов и (или) возмещение фактически понесенных затрат в связи с производством (реализацией) товаров, выполнением работ, оказанием услуг ","05","03","91.1.00.60105","811",{"$f":"3697.4-2917.1-300-480.3","v":0}]
["КУЛЬТУРА, КИНЕМАТОГРАФИЯ","08","00","00.0.00.00000","000",{"$f":"F172","v":27545.4}]
["КУЛЬТУРА","08","01","91.0.00.00000","000",{"$f":"F173+F179+F187","v":27545.4}]
["Непрограммные расходы органов местного самоуправления","08","01","91.1.00.00000","000",{"$f":"F174","v":13823.999999999998}]
["Осуществление органами местного самоуправления полномочий местного значения поселения","08","01","91.1.00.60002","000",{"$f":"F175","v":13823.999999999998}]
["Расходы на выплату персоналу в целях обеспечения выполнения функций государственными (муниципальными) органами, казенными учреждениями, органами управления государственными внебюджетными фондами","08","01","91.1.00.60002","100",{"$f":"F176","v":13823.999999999998}]
["Расходы на выплату персоналу казенных учреждений","08","01","91.1.00.60002","110",{"$f":"F177+F178","v":13823.999999999998}]
["Фонд оплаты труда казенных учреждений и взносы по обязательному социальному страхованию","08","01","91.1.00.60002","111",{"$f":"10659-2088.1+1396+460.8","v":10427.699999999999}]
["Взносы по обязательному социальному страхованию на выплаты по оплате труда работников и иные выплаты работникам учреждений","08","01","91.1.00.60002","119",{"$f":"3219-565.9+604+139.2","v":3396.2999999999997}]
["Непрограммные расходы органов местного самоуправления","08","01","91.0.00.00000","000",{"$f":"F180","v":13588.400000000001}]
["Непрограммные расходы органов местного самоуправления за счет средств местного бюджета","08","01","91.1.00.00000","000",{"$f":"F181","v":13588.400000000001}]
["Осуществление органами местного самоуправления полномочий местного значения поселения","08","01","91.1.00.60000","000",13588.400000000001]
["Обеспечение деятельности в сфере установленных функции бюджетных, автономных и казенных учреждений","08","01","91.1.00.60002","000",13588.400000000001]
["Закупка товаров, работ и услуг для обеспечения государственных (муниципальных) нужд","08","01","91.1.00.60002","200",13588.400000000001]
["Иные закупки товаров, работ и услуг для обеспечения государственных (муниципальных) нужд","08","01","91.1.00.60002","240",{"$f":"F185+F186","v":13588.400000000001}]
["Прочая закупка товаров, работ и услуг для обеспечения государственных (муниципальных) нужд","08","01","91.1.00.60002","244",{"$f":"3373.2+600-12+450+400-21+1000-100+800+2500+198.2-2650+700+2200+1500","v":10938.400000000001},null,null,2200]
["Закупка товаров, работ, услуг в целях капитального ремонта государственного (муниципального) имущества","08","01","91.1.00.60002","243",2650]
["Иные бюджетные ассигнования","08","01","91.1.00.60002","850",{"$f":"F189+F188","v":133}]
["Уплата прочих налогов, сборов","08","01","91.1.00.60002","852",8]
["Уплата иных платежей","08","01","91.1.00.60002","853",{"$f":"25+100","v":125}]
["СОЦИАЛЬНАЯ ПОЛИТИКА","10","00","00.0.00.00000","000",{"$f":"F191","v":250.39999999999998}]
["Пенсионное обеспечение","10","01","00.0.00.00000","000",250.39999999999998]
["Непрограммные расходы органов местного самоуправления","10","01","91.0.00.00000","000",250.39999999999998]
["Непрограммные расходы органов местного самоуправления за счет средств местного бюджета","10","01","91.1.00.00000","000",250.39999999999998]
["Осуществление органами местного самоуправления полномочий местного значения поселения","10","01","91.1.00.60000","000",250.39999999999998]
["Доплаты к пенсиям муниципальных служащих","10","01","91.1.00.60018","000",250.39999999999998]
["Социальное обеспечение и иные выплаты населению","10","01","91.1.00.60018","300",250.39999999999998]
["Публичные нормативные социальные выплаты гражданам","10","01","91.1.00.60018","310",250.39999999999998]
["Иные пенсии, социальные доплаты к пенсиям","10","01","91.1.00.60018","312",{"$f":"244.7+5.7","v":250.39999999999998}]
["ФИЗИЧЕСКАЯ КУЛЬТУРА И СПОРТ","11","00","00.0.00.00000","000",{"$f":"F200","v":{"$error":"#REF!"}}]
["Другие вопросы в области физической культуры и спорта","11","05","00.0.00.00000","000",{"$error":"#REF!"}]
["Непрограммные расходы органов местного самоуправления","11","05","91.0.00.00000","000",{"$error":"#REF!"}]
["Непрограммные расходы органов местного самоуправления за счет средств местного бюджета","11","05","91.1.00.00000","000",{"$error":"#REF!"}]
["Осуществление органами местного самоуправления полномочий местного значения поселения","11","05","91.1.00.60000","000",{"$error":"#REF!"}]
["Обеспечение деятельности в сфере установленных функции бюджетных, автономных и казенных учреждений","11","05","91.1.00.60002","000",{"$error":"#REF!"}]
["Закупка товаров, работ и услуг для обеспечения государственных (муниципальных) нужд","11","05","91.1.00.60002","200",{"$error":"#REF!"}]
["Иные закупки товаров, работ и услуг для обеспечения государственных (муниципальных) нужд","11","05","91.1.00.60002","240",{"$f":"#REF!","v":{"$error":"#REF!"}}]
["МЕЖБЮДЖЕТНЫЕ ТРАНСФЕРТЫ БЮДЖЕТАМ БЮДЖЕТНОЙ СИСТЕМЫ РФ","14","00","00.0.00.00000","000",{"$f":"F208","v":259.2}]
["Прочие межбюджетные трансферты общего характера ","14","03","00.0.00.00000","000",{"$f":"F209","v":259.2}]
["Непрограммые расходы органов местного самоуправления ","14","03","91.0.00.00000","000",259.2]
["Непрограммые расходы органов местного самоуправления за счет средств местного бюджета","14","03","91.1.00.00000","000",259.2]
["Осуществление органами местного самоуправления полномочий местного значения поселения","14","03","91.1.00.60000","000",259.2]
["Иные межбюджетные трансферты","14","03","91.1.00.60020","000",259.2]
["Выполнение функций органами местного самоуправления","14","03","91.1.00.60020","500",259.2]
["Иные межбюджетные трансферты","14","03","91.1.00.60020","540",259.2]
["МЕЖБЮДЖЕТНЫЕ ТРАНСФЕРТЫ ОБЩЕГО ХАРАКТЕРА БЮДЖЕТАМ СУБЪЕКТОВ РОССИЙСКОЙ ФЕДЕРАЦИИ И МУНИЦИПАЛЬНЫХ ОБРАЗОВАНИЙ ","14","00","00.0.00.00000","000",{"$f":"F216","v":{"$error":"#REF!"}}]
["Прочие межбюджетные трансферты общего характера ","14","03","00.0.00.00000","000",{"$error":"#REF!"}]
["Непрограммные расходы органов местного самоуправления","14","03","91.0.00.00000","000",{"$error":"#REF!"}]
["Непрограммные расходы органов местного самоуправления за счет средств местного бюджета","14","03","91.1.00.00000","000",{"$error":"#REF!"}]
["Осуществление органами местного самоуправления полномочий местного значения поселения","14","03","91.1.00.60000","000",{"$error":"#REF!"}]
["Иные межбюджетные трансферты","14","03","91.1.00.60020","000",{"$error":"#REF!"}]
["Межбюджетные трансферты","14","03","91.1.00.60020","500",{"$f":"#REF!","v":{"$error":"#REF!"}}]